fUST/lending_fUST_20250715
["ID","MTS","AMOUNT","RATE_DAILY","PERIOD"]
[372260406,1752567052278,-460.0,0.0002,2]
[372260407,1752567052287,-460.0,0.0002,2]
[372260408,1752567052297,-460.0,0.0002,2]
[372260409,1752567052306,-195.76260256,0.0002,2]
[372260410,1752567052316,-473.13471117,0.0002,2]
[372260411,1752567052326,-460.0,0.0002,2]
[372260412,1752567052335,-861.3,0.0002,2]
[372260413,1752567052345,-560.6,0.0002,2]
[372260414,1752567052354,-460.0,0.0002,2]
[372260415,1752567052364,-460.0,0.0002,2]
[372260416,1752567052374,-151.0,0.0002,2]
[372260417,1752567052383,-460.0,0.0002,2]
[372260418,1752567052393,-460.0,0.0002,2]
[372260419,1752567052402,-460.0,0.0002,2]
[372260420,1752567052412,-460.0,0.0002,2]
[372260421,1752567052421,-460.0,0.0002,2]
[372260422,1752567052430,-460.0,0.0002,2]
[372260423,1752567052439,-460.0,0.0002,2]
[372260424,1752567052449,-460.0,0.0002,2]
[372260425,1752567052458,-1269.77,0.0002,2]
[372260426,1752567052472,-460.0,0.0002,2]
[372260427,1752567052482,-460.0,0.0002,2]
[372260428,1752567052491,-867.08,0.0002,2]
[372260429,1752567052500,-460.0,0.0002,2]
[372260430,1752567052509,-1674.63,0.0002,2]
[372260431,1752567052518,-460.0,0.0002,2]
[372260432,1752567052527,-460.0,0.0002,2]
[372260433,1752567052537,-4147.86,0.0002,2]
[372260434,1752567052546,-460.0,0.0002,2]
[372260435,1752567052556,-460.0,0.0002,2]
[372260436,1752567052568,-460.0,0.0002,2]
[372260437,1752567052577,-5848.8,0.0002,2]
[372260438,1752567052586,-886.89,0.0002,2]
[372260439,1752567052595,-365.78828107,0.0002,2]
[372260440,1752567052605,-963.83,0.0002,2]
[372260441,1752567052614,-771.92,0.0002,2]
[372260442,1752567052623,-680.18,0.0002,2]
[372260443,1752567052632,-617.26,0.0002,2]
[372260444,1752567052719,-460.0,0.0002,2]
[372260445,1752567052729,-460.0,0.0002,2]
[372260446,1752567052738,-1007.25,0.0002,2]
[372260447,1752567052749,-480.35,0.0002,2]
[372260448,1752567052759,-460.0,0.0002,2]
[372260449,1752567052770,-460.0,0.0002,2]
[372260450,1752567052780,-917.91,0.0002,2]
[372260451,1752567052790,-460.0,0.0002,2]
[372260452,1752567052800,-460.0,0.0002,2]
[372260453,1752567052810,-469.10647165,0.0002,2]
[372260454,1752567052821,-1939.88,0.0002,2]
[372260455,1752567052831,-300.0,0.0002,2]
[372260456,1752567052840,-460.0,0.0002,2]
[372260457,1752567052850,-1354.66,0.0002,2]
[372260458,1752567052859,-3586.98,0.0002,2]
[372260459,1752567052869,-296.14996238,0.0002,2]
[372260460,1752567052879,-541.6,0.0002,2]
[372260461,1752567052888,-7025.13,0.0002,2]
[372260462,1752567052898,-808.58,0.0002,2]
[372260463,1752567052908,-649.64,0.0002,2]
[372260464,1752567052917,-647.05,0.0002,2]
[372260465,1752567052927,-460.0,0.0002,2]
[372260466,1752567052937,-483.97,0.0002,2]
[372260467,1752567052946,-563.75,0.0002,2]
[372260468,1752567052956,-460.0,0.0002,2]
[372260469,1752567052967,-861.58,0.0002,2]
[372260470,1752567052977,-538.14,0.0002,2]
[372260471,1752567052987,-460.0,0.0002,2]
[372260472,1752567052996,-460.0,0.0002,2]
[372260473,1752567053006,-460.0,0.0002,2]
[372260474,1752567053015,-1599.32,0.0002,2]
[372260475,1752567053027,-460.0,0.0002,2]
[372260476,1752567053036,-2326.61,0.0002,2]
[372260477,1752567053046,-888.4,0.0002,2]
[372260478,1752567053055,-460.0,0.0002,2]
[372260479,1752567053064,-460.0,0.0002,2]
[372260480,1752567053074,-460.0,0.0002,2]
[372260481,1752567053084,-460.0,0.0002,2]
[372260482,1752567053094,-460.0,0.0002,2]
[372260483,1752567053103,-460.0,0.0002,2]
[372260484,1752567053113,-460.0,0.0002,2]
[372260485,1752567053123,-460.0,0.0002,2]
[372260486,1752567053132,-965.69,0.0002,2]
[372260487,1752567053142,-460.0,0.0002,2]
[372260488,1752567053152,-560.9,0.0002,2]
[372260489,1752567053161,-1000.0,0.00020021,2]
[372260490,1752567053171,-1000.0,0.00020021,2]
[372260491,1752567053181,-1004.72326214,0.00020021,2]
[372260492,1752567053190,-1000.0,0.00020021,2]
[372260493,1752567053201,-1000.0,0.00020021,2]
[372260494,1752567053211,-501.57991757,0.00020021,2]
[372260495,1752567053221,-501.11399687,0.00020021,2]
[372260496,1752567053231,-1000.0,0.00020021,2]
[372260497,1752567053240,-203.46871544,0.00020021,2]
[372260498,1752567053250,-1000.0,0.00020021,2]
[372260499,1752567053259,-209.7230051,0.00020021,2]
[372260500,1752567053269,-1000.0,0.00020021,2]
[372260501,1752567053278,-1000.0,0.00020021,2]
[372260502,1752567053288,-1000.0,0.00020021,2]
[372260503,1752567053298,-151.0,0.00020021,2]
[372260504,1752567053307,-151.0,0.00020021,2]
[372260505,1752567053317,-211.43525886,0.00020037,2]
[372260506,1752567053327,-151.0,0.000201,4]
[372260507,1752567053338,-2898.09466799,0.00020173,2]
[372260508,1752567053351,-169.554251,0.00020187,2]
[372260509,1752567053369,-2908.45620053,0.00020222,2]
[372260510,1752567053379,-160.04639916,0.00020244,2]
[372260511,1752567053395,-1000.0,0.00020268,2]
[372260512,1752567053410,-1500.0,0.00020268,2]
[372260513,1752567053420,-500.0,0.00020273,2]
[372260514,1752567053431,-500.0,0.00020273,2]
[372260515,1752567053442,-500.0,0.00020273,2]
[372260516,1752567053452,-500.0,0.00020273,2]
[372260517,1752567053462,-158.47430899,0.00020273,2]
[372260518,1752567053476,-151.05942784,0.00020273,2]
[372260519,1752567053485,-500.0,0.00020273,2]
[372260520,1752567053494,-589.38521866,0.00020273,2]
[372260521,1752567053504,-500.0,0.00020273,2]
[372260522,1752567053514,-502.44996152,0.00020273,2]
[372260523,1752567053524,-502.10695305,0.00020273,2]
[372260524,1752567053533,-501.77846167,0.00020273,2]
[372260525,1752567053545,-500.0,0.00020273,2]
[372260526,1752567053555,-500.0,0.00020273,2]
[372260527,1752567053564,-500.74280485,0.00020273,2]
[372260528,1752567053573,-500.0,0.00020273,2]
[372260529,1752567053583,-518.85288846,0.00020273,2]
[372260530,1752567053592,-16305.08396745,0.00020273,2]
[372260531,1752567053601,-500.0,0.00020273,2]
[372260532,1752567053611,-500.0,0.00020273,2]
[372260533,1752567053621,-500.0,0.00020273,2]
[372260534,1752567053631,-224.7,0.00020273,2]
[372260535,1752567053640,-460.0,0.00020273,2]
[372260536,1752567053650,-460.0,0.00020273,2]
[372260537,1752567053659,-460.0,0.00020273,2]
[372260538,1752567053669,-460.0,0.00020273,2]
[372260539,1752567053679,-460.0,0.00020273,2]
[372260540,1752567053689,-460.0,0.00020273,2]
[372260541,1752567053698,-460.0,0.00020273,2]
[372260542,1752567053708,-460.0,0.00020273,2]
[372260543,1752567053721,-477.51,0.00020273,2]
[372260544,1752567053731,-460.0,0.00020273,2]
[372260545,1752567053741,-487.39,0.00020273,2]
[372260546,1752567053751,-667.67,0.00020273,2]
[372260547,1752567053761,-460.0,0.00020273,2]
[372260548,1752567053771,-839.74,0.00020273,2]
[372260549,1752567053780,-179.99235221,0.00020273,2]
[372260550,1752567053789,-460.0,0.00020273,2]
[372260551,1752567053799,-460.0,0.00020273,2]
[372260552,1752567053809,-460.0,0.00020273,2]
[372260553,1752567053818,-460.0,0.00020273,2]
[372260554,1752567053828,-495.21,0.00020273,2]
[372260555,1752567053837,-460.0,0.00020273,2]
[372260556,1752567053847,-838.93,0.00020273,2]
[372260557,1752567053856,-460.0,0.00020273,2]
[372260558,1752567053866,-460.0,0.00020273,2]
[372260559,1752567053875,-886.89,0.00020273,2]
[372260560,1752567053885,-504.33546279,0.00020273,2]
[372260561,1752567053894,-873.01,0.00020273,2]
[372260562,1752567053904,-460.0,0.00020273,2]
[372260563,1752567053913,-460.0,0.00020273,2]
[372260564,1752567053923,-460.0,0.00020273,2]
[372260565,1752567053933,-460.0,0.00020273,2]
[372260566,1752567053943,-460.0,0.00020273,2]
[372260567,1752567053952,-460.0,0.00020273,2]
[372260568,1752567053962,-460.0,0.00020273,2]
[372260569,1752567053971,-460.0,0.00020273,2]
[372260570,1752567053981,-460.0,0.00020273,2]
[372260571,1752567053991,-460.0,0.00020273,2]
[372260572,1752567054000,-460.0,0.00020273,2]
[372260573,1752567054010,-460.0,0.00020273,2]
[372260574,1752567054019,-460.0,0.00020273,2]
[372260575,1752567054029,-861.3,0.00020273,2]
[372260576,1752567054038,-560.6,0.00020273,2]
[372260577,1752567054047,-460.0,0.00020273,2]
[372260578,1752567054057,-151.0,0.00020273,2]
[372260579,1752567054067,-473.8056111,0.00020273,2]
[372260580,1752567054076,-460.0,0.00020273,2]
[372260581,1752567054085,-460.0,0.00020273,2]
[372260582,1752567054095,-460.0,0.00020273,2]
[372260583,1752567054104,-460.0,0.00020273,2]
[372260584,1752567054113,-460.0,0.00020273,2]
[372260585,1752567054122,-460.0,0.00020273,2]
[372260586,1752567054132,-460.0,0.00020273,2]
[372260587,1752567054141,-1269.77,0.00020273,2]
[372260588,1752567054151,-460.0,0.00020273,2]
[372260589,1752567054161,-460.0,0.00020273,2]
[372260590,1752567054171,-151.0,0.00020273,2]
[372260591,1752567054180,-867.08,0.00020273,2]
[372260592,1752567054189,-1674.63,0.00020273,2]
[372260593,1752567054199,-460.0,0.00020273,2]
[372260594,1752567054209,-460.0,0.00020273,2]
[372260595,1752567054293,-4147.86,0.00020273,2]
[372260596,1752567054303,-460.0,0.00020273,2]
[372260597,1752567054313,-460.0,0.00020273,2]
[372260598,1752567054322,-5848.8,0.00020273,2]
[372260599,1752567054332,-886.89,0.00020273,2]
[372260600,1752567054341,-963.83,0.00020273,2]
[372260601,1752567054351,-771.92,0.00020273,2]
[372260602,1752567054360,-680.18,0.00020273,2]
[372260603,1752567054370,-617.26,0.00020273,2]
[372260604,1752567054392,-460.0,0.00020273,2]
[372260605,1752567054402,-460.0,0.00020273,2]
[372260606,1752567054411,-1007.25,0.00020273,2]
[372260607,1752567054421,-460.0,0.00020273,2]
[372260608,1752567054430,-460.0,0.00020273,2]
[372260609,1752567054439,-917.91,0.00020273,2]
[372260610,1752567054448,-460.0,0.00020273,2]
[372260611,1752567054458,-487.79274286,0.00020273,2]
[372260612,1752567054471,-1939.88,0.00020273,2]
[372260613,1752567054481,-460.0,0.00020273,2]
[372260614,1752567054490,-1354.66,0.00020273,2]
[372260615,1752567054499,-3586.98,0.00020273,2]
[372260616,1752567054508,-541.6,0.00020273,2]
[372260617,1752567054517,-7025.13,0.00020273,2]
[372260618,1752567054527,-808.58,0.00020273,2]
[372260619,1752567054538,-649.64,0.00020273,2]
[372260620,1752567054547,-647.05,0.00020273,2]
[372260621,1752567054557,-460.0,0.00020273,2]
[372260622,1752567054567,-483.97,0.00020273,2]
[372260623,1752567054577,-563.75,0.00020273,2]
[372260624,1752567054587,-460.0,0.00020273,2]
[372260625,1752567054596,-861.58,0.00020273,2]
[372260626,1752567054606,-538.14,0.00020273,2]
[372260627,1752567054615,-460.0,0.00020273,2]
[372260628,1752567054624,-1599.32,0.00020273,2]
[372260629,1752567054634,-609.04,0.00020273,2]
[372260630,1752567054644,-2326.61,0.00020273,2]
[372260631,1752567054654,-888.4,0.00020273,2]
[372260632,1752567054663,-460.0,0.00020273,2]
[372260633,1752567054673,-460.0,0.00020273,2]
[372260634,1752567054682,-460.0,0.00020273,2]
[372260635,1752567054691,-460.0,0.00020273,2]
[372260636,1752567054701,-460.0,0.00020273,2]
[372260637,1752567054710,-460.0,0.00020273,2]
[372260638,1752567054722,-965.69,0.00020273,2]
[372260639,1752567054732,-460.0,0.00020273,2]
[372260640,1752567054741,-151.0,0.00020273,2]
[372260641,1752567054751,-151.0,0.00020273,2]
[372260642,1752567054760,-151.0,0.00020273,2]
[372260643,1752567054769,-560.9,0.00020273,2]
[372260644,1752567054779,-151.0,0.000203,4]
[372260645,1752567054789,-2908.45620053,0.00020344,2]
[372260646,1752567054798,-1236.95564084,0.00020384,2]
[372260647,1752567054807,-151.0,0.000204,4]
[372260648,1752567054817,-160.0,0.0002041,2]
[372260649,1752567054826,-388.04,0.00020438,3]
[372260650,1752567054836,-151.0,0.00020447,2]
[372260651,1752567054845,-260.007,0.00020447,2]
[372260652,1752567054855,-500.0,0.00020473,2]
[372260653,1752567054864,-151.0,0.00020484,2]
[372260654,1752567054874,-25000.0,0.00020484,2]
[372260655,1752567054884,-501.11795172,0.00020521,2]
[372260656,1752567054893,-160.0,0.00020538,2]
[372260657,1752567054902,-160.0,0.00020538,2]
[372260658,1752567054911,-160.0,0.00020538,2]
[372260659,1752567054921,-468.75,0.00020538,2]
[372260660,1752567054930,-838.84061749,0.00020538,2]
[372260661,1752567054940,-525.51022752,0.00020538,2]
[372260662,1752567054949,-215.50840239,0.00020538,2]
[372260663,1752567054959,-160.0,0.00020538,2]
[372260664,1752567054969,-160.0,0.00020538,2]
[372260665,1752567054978,-160.0,0.00020538,2]
[372260666,1752567054988,-160.0,0.00020538,2]
[372260667,1752567054998,-160.0,0.00020538,2]
[372260668,1752567055007,-12603.13032295,0.00020539,2]
[372260669,1752567055018,-160.0,0.00020539,2]
[372260670,1752567055027,-500.0,0.00020547,2]
[372260671,1752567055037,-266.7209629,0.00020547,2]
[372260672,1752567055046,-460.0,0.00020547,2]
[372260673,1752567055055,-460.0,0.00020547,2]
[372260674,1752567055065,-460.0,0.00020547,2]
[372260675,1752567055074,-460.0,0.00020547,2]
[372260676,1752567055083,-460.0,0.00020547,2]
[372260677,1752567055093,-477.51,0.00020547,2]
[372260678,1752567055103,-487.39,0.00020547,2]
[372260679,1752567055114,-667.67,0.00020547,2]
[372260680,1752567055123,-460.0,0.00020547,2]
[372260681,1752567055132,-839.74,0.00020547,2]
[372260682,1752567055142,-460.0,0.00020547,2]
[372260683,1752567055151,-304.29283647,0.00020547,2]
[372260684,1752567055160,-460.0,0.00020547,2]
[372260685,1752567055170,-460.0,0.00020547,2]
[372260686,1752567055179,-495.21,0.00020547,2]
[372260687,1752567055189,-460.0,0.00020547,2]
[372260688,1752567055198,-838.93,0.00020547,2]
[372260689,1752567055207,-460.0,0.00020547,2]
[372260690,1752567055217,-385.56353006,0.00020547,2]
[372260691,1752567055227,-500.0,0.00020547,2]
[372260692,1752567055236,-429.07083965,0.00020547,2]
[372260693,1752567055246,-886.89,0.00020547,2]
[372260694,1752567055255,-873.01,0.00020547,2]
[372260695,1752567055265,-460.0,0.00020547,2]
[372260696,1752567055274,-460.0,0.00020547,2]
[372260697,1752567055283,-460.0,0.00020547,2]
[372260698,1752567055292,-460.0,0.00020547,2]
[372260699,1752567055301,-460.0,0.00020547,2]
[372260700,1752567055310,-460.0,0.00020547,2]
[372260701,1752567055319,-460.0,0.00020547,2]
[372260702,1752567055328,-460.0,0.00020547,2]
[372260703,1752567055337,-460.0,0.00020547,2]
[372260704,1752567055346,-460.0,0.00020547,2]
[372260705,1752567055355,-460.0,0.00020547,2]
[372260706,1752567055366,-460.0,0.00020547,2]
[372260707,1752567055375,-460.0,0.00020547,2]
[372260708,1752567055385,-861.3,0.00020547,2]
[372260709,1752567055395,-560.6,0.00020547,2]
[372260710,1752567055404,-460.0,0.00020547,2]
[372260711,1752567055414,-460.0,0.00020547,2]
[372260712,1752567055423,-460.0,0.00020547,2]
[372260713,1752567055432,-460.0,0.00020547,2]
[372260714,1752567055441,-460.0,0.00020547,2]
[372260715,1752567055450,-460.0,0.00020547,2]
[372260716,1752567055460,-460.0,0.00020547,2]
[372260717,1752567055473,-460.0,0.00020547,2]
[372260718,1752567055482,-1269.77,0.00020547,2]
[372260719,1752567055492,-460.0,0.00020547,2]
[372260720,1752567055501,-460.0,0.00020547,2]
[372260721,1752567055511,-867.08,0.00020547,2]
[372260722,1752567055520,-1674.63,0.00020547,2]
[372260723,1752567055529,-460.0,0.00020547,2]
[372260724,1752567055540,-460.0,0.00020547,2]
[372260725,1752567055550,-4147.86,0.00020547,2]
[372260726,1752567055559,-460.0,0.00020547,2]
[372260727,1752567055569,-460.0,0.00020547,2]
[372260728,1752567055579,-5848.8,0.00020547,2]
[372260729,1752567055588,-886.89,0.00020547,2]
[372260730,1752567055597,-963.83,0.00020547,2]
[372260731,1752567055607,-771.92,0.00020547,2]
[372260732,1752567055616,-151.0,0.00020547,2]
[372260733,1752567055626,-680.18,0.00020547,2]
[372260734,1752567055635,-617.26,0.00020547,2]
[372260735,1752567055719,-460.0,0.00020547,2]
[372260736,1752567055728,-151.0,0.00020547,2]
[372260737,1752567055738,-460.0,0.00020547,2]
[372260738,1752567055747,-1007.25,0.00020547,2]
[372260739,1752567055757,-460.0,0.00020547,2]
[372260740,1752567055766,-917.91,0.00020547,2]
[372260741,1752567055776,-460.0,0.00020547,2]
[372260742,1752567055785,-1939.88,0.00020547,2]
[372260743,1752567055795,-460.0,0.00020547,2]
[372260744,1752567055804,-1354.66,0.00020547,2]
[372260745,1752567055814,-3586.98,0.00020547,2]
[372260746,1752567055823,-541.6,0.00020547,2]
[372260747,1752567055834,-7025.13,0.00020547,2]
[372260748,1752567055844,-808.58,0.00020547,2]
[372260749,1752567055854,-649.64,0.00020547,2]
[372260750,1752567055863,-647.05,0.00020547,2]
[372260751,1752567055872,-460.0,0.00020547,2]
[372260752,1752567055882,-483.97,0.00020547,2]
[372260753,1752567055891,-563.75,0.00020547,2]
[372260754,1752567055901,-861.58,0.00020547,2]
[372260755,1752567055910,-538.14,0.00020547,2]
[372260756,1752567055920,-460.0,0.00020547,2]
[372260757,1752567055930,-1599.32,0.00020547,2]
[372260758,1752567055939,-2326.61,0.00020547,2]
[372260759,1752567055949,-888.4,0.00020547,2]
[372260760,1752567055959,-271.56123046,0.00020547,2]
[372260761,1752567055970,-481.24664277,0.00020547,2]
[372260762,1752567055980,-460.0,0.00020547,2]
[372260763,1752567055989,-460.0,0.00020547,2]
[372260764,1752567055998,-965.69,0.00020547,2]
[372260765,1752567056007,-460.0,0.00020547,2]
[372260766,1752567056017,-560.9,0.00020547,2]
[372260767,1752567056027,-151.0,0.00020547,2]
[372260768,1752567056036,-151.0,0.00020568,2]
[372260769,1752567056045,-1500.0,0.00020568,2]
[372260770,1752567056055,-504.65986824,0.00020568,2]
[372260771,1752567056064,-1073.35999234,0.00020568,2]
[372260772,1752567056073,-506.95976824,0.00020568,2]
[372260773,1752567056082,-1500.0,0.00020568,2]
[372260774,1752567056092,-1004.85085661,0.00020568,2]
[372260775,1752567056101,-1000.0,0.00020568,2]
[372260776,1752567056111,-1500.0,0.00020568,2]
[372260777,1752567056120,-2908.45620053,0.00020571,2]
[372260778,1752567056130,-5770.43,0.000206,2]
[372260779,1752567056139,-191.524113,0.00020712,2]
[372260780,1752567056148,-151.0,0.00020712,2]
[372260781,1752567056158,-151.0,0.00020712,2]
[372260782,1752567056167,-151.0,0.00020712,2]
[372260783,1752567056177,-151.0,0.00020712,2]
[372260784,1752567056186,-151.0,0.00020712,2]
[372260785,1752567056195,-5000.0,0.00020787,2]
[372260786,1752567056205,-538.0,0.00020787,2]
[372260787,1752567056214,-604.836,0.00020788,2]
[372260788,1752567056224,-178.195,0.00020788,2]
[372260789,1752567056234,-420.0,0.00020792,2]
[372260790,1752567056244,-2000.0,0.00020816,2]
[372260791,1752567056253,-460.0,0.0002082,2]
[372260792,1752567056263,-460.0,0.0002082,2]
[372260793,1752567056273,-151.0,0.0002082,2]
[372260794,1752567056282,-249.030144,0.0002082,2]
[372260795,1752567056292,-151.0,0.0002082,2]
[372260796,1752567056302,-460.0,0.0002082,2]
[372260797,1752567056311,-561.68,0.0002082,2]
[372260798,1752567056320,-6077.9,0.0002082,2]
[372260799,1752567056330,-460.0,0.0002082,2]
[372260800,1752567056340,-1389.19,0.0002082,2]
[372260801,1752567056350,-402.89700041,0.0002082,2]
[372260802,1752567056360,-460.0,0.0002082,2]
[372260803,1752567056370,-460.0,0.0002082,2]
[372260804,1752567056380,-460.0,0.0002082,2]
[372260805,1752567056390,-824.94,0.0002082,2]
[372260806,1752567056399,-1943.38,0.0002082,2]
[372260807,1752567056409,-460.0,0.0002082,2]
[372260808,1752567056418,-1676.85,0.0002082,2]
[372260809,1752567056428,-2981.8,0.0002082,2]
[372260810,1752567056437,-460.0,0.0002082,2]
[372260811,1752567056446,-636.57,0.0002082,2]
[372260812,1752567056456,-1605.01,0.0002082,2]
[372260813,1752567056467,-460.0,0.0002082,2]
[372260814,1752567056478,-460.0,0.0002082,2]
[372260815,1752567056488,-460.0,0.0002082,2]
[372260816,1752567056497,-2148.88,0.0002082,2]
[372260817,1752567056507,-500.02726853,0.00020821,2]
[372260818,1752567056516,-969.81590477,0.00020821,2]
[372260819,1752567056525,-1000.0,0.00020821,2]
[372260820,1752567056534,-506.39072393,0.00020821,2]
[372260821,1752567056544,-533.32870274,0.00020821,2]
[372260822,1752567056553,-500.0,0.00020821,2]
[372260823,1752567056562,-1000.0,0.00020821,2]
[372260824,1752567056571,-500.0,0.00020821,2]
[372260825,1752567056581,-460.0,0.00020821,2]
[372260826,1752567056590,-460.0,0.00020821,2]
[372260827,1752567056600,-460.0,0.00020821,2]
[372260828,1752567056609,-460.0,0.00020821,2]
[372260829,1752567056618,-460.0,0.00020821,2]
[372260830,1752567056627,-477.51,0.00020821,2]
[372260831,1752567056637,-487.39,0.00020821,2]
[372260832,1752567056646,-667.67,0.00020821,2]
[372260833,1752567056655,-460.0,0.00020821,2]
[372260834,1752567056665,-839.74,0.00020821,2]
[372260835,1752567056675,-460.0,0.00020821,2]
[372260836,1752567056684,-460.0,0.00020821,2]
[372260837,1752567056694,-460.0,0.00020821,2]
[372260838,1752567056704,-495.21,0.00020821,2]
[372260839,1752567056715,-460.0,0.00020821,2]
[372260840,1752567056724,-838.93,0.00020821,2]
[372260841,1752567056733,-517.51736164,0.00020821,2]
[372260842,1752567056743,-886.89,0.00020821,2]
[372260843,1752567056753,-873.01,0.00020821,2]
[372260844,1752567056762,-460.0,0.00020821,2]
[372260845,1752567056771,-460.0,0.00020821,2]
[372260846,1752567056781,-460.0,0.00020821,2]
[372260847,1752567056790,-460.0,0.00020821,2]
[372260848,1752567056799,-460.0,0.00020821,2]
[372260849,1752567056809,-470.99375516,0.00020821,2]
[372260850,1752567056819,-460.0,0.00020821,2]
[372260851,1752567056828,-460.0,0.00020821,2]
[372260852,1752567056838,-460.0,0.00020821,2]
[372260853,1752567056847,-460.0,0.00020821,2]
[372260854,1752567056856,-460.0,0.00020821,2]
[372260855,1752567056866,-861.3,0.00020821,2]
[372260856,1752567056876,-560.6,0.00020821,2]
[372260857,1752567056885,-460.0,0.00020821,2]
[372260858,1752567056895,-460.0,0.00020821,2]
[372260859,1752567056904,-460.0,0.00020821,2]
[372260860,1752567056914,-460.0,0.00020821,2]
[372260861,1752567056924,-460.0,0.00020821,2]
[372260862,1752567056934,-460.0,0.00020821,2]
[372260863,1752567057038,-460.0,0.00020821,2]
[372260864,1752567057048,-460.0,0.00020821,2]
[372260865,1752567057057,-1269.77,0.00020821,2]
[372260866,1752567057067,-460.0,0.00020821,2]
[372260867,1752567057077,-521.40262785,0.00020821,2]
[372260868,1752567057086,-867.08,0.00020821,2]
[372260869,1752567057096,-1674.63,0.00020821,2]
[372260870,1752567057106,-460.0,0.00020821,2]
[372260871,1752567057116,-460.0,0.00020821,2]
[372260872,1752567057125,-4147.86,0.00020821,2]
[372260873,1752567057134,-460.0,0.00020821,2]
[372260874,1752567057144,-460.0,0.00020821,2]
[372260875,1752567057153,-852.43778485,0.00020821,2]
[372260876,1752567057300,-4996.36221515,0.00020821,2]
[372260877,1752567057310,-886.89,0.00020821,2]
[372260878,1752567057319,-963.83,0.00020821,2]
[372260879,1752567057329,-771.92,0.00020821,2]
[372260880,1752567057338,-680.18,0.00020821,2]
[372260881,1752567057348,-617.26,0.00020821,2]
[372260882,1752567057357,-460.0,0.00020821,2]
[372260883,1752567057366,-460.0,0.00020821,2]
[372260884,1752567057375,-1007.25,0.00020821,2]
[372260885,1752567057386,-460.0,0.00020821,2]
[372260886,1752567057395,-917.91,0.00020821,2]
[372260887,1752567057404,-460.0,0.00020821,2]
[372260888,1752567057413,-1939.88,0.00020821,2]
[372260889,1752567057423,-460.0,0.00020821,2]
[372260890,1752567057432,-1354.66,0.00020821,2]
[372260891,1752567057441,-3586.98,0.00020821,2]
[372260892,1752567057451,-541.6,0.00020821,2]
[372260893,1752567057460,-7025.13,0.00020821,2]
[372260894,1752567057474,-808.58,0.00020821,2]
[372260895,1752567057484,-649.64,0.00020821,2]
[372260896,1752567057494,-647.05,0.00020821,2]
[372260897,1752567057503,-460.0,0.00020821,2]
[372260898,1752567057513,-483.97,0.00020821,2]
[372260899,1752567057522,-563.75,0.00020821,2]
[372260900,1752567057532,-861.58,0.00020821,2]
[372260901,1752567057541,-538.14,0.00020821,2]
[372260902,1752567057553,-228.54568651,0.00020821,2]
[372260903,1752567057563,-1599.32,0.00020821,2]
[372260904,1752567057573,-2326.61,0.00020821,2]
[372260905,1752567057583,-888.4,0.00020821,2]